bitfinex-derivatives/quotes_SOLF0:USTF0_20250829
["timestamp","ask_amount","ask_price","bid_price","bid_amount"]
[1756456802079,18.74288646,208.07,207.86,7.57]
[1756456802281,131.44,208.06,207.86,7.57]
[1756456802575,18.74288646,208.02,207.86,7.57]
[1756456803377,132.2,208.03,207.86,7.57]
[1756456803580,323.2,208.07,207.88,11.86930242]
[1756456803781,455.36,208.07,207.89,7.57]
[1756456803979,11.86930242,208.06,207.89,7.57]
[1756456804182,11.86930242,208.02,207.83,7.57]
[1756456804380,11.86930242,207.98,207.83,7.57]
[1756456804583,11.86930242,207.94,207.71,11.86930242]
[1756456804789,11.86930242,207.94,207.72,7.57]
[1756456804979,11.86930242,207.9,207.72,7.57]
[1756456805184,323.2,208.07,207.75,7.57]
[1756456805185,9.76,207.93,207.75,7.57]
[1756456805381,9.76,207.94,207.75,7.57]
[1756456805581,67.3307,207.91,207.75,7.57]
[1756456805886,337.57,207.92,207.68,7.57]
[1756456806188,132.32,207.91,207.72,7.57]
[1756456806786,323.18,207.92,207.76,7.48]
[1756456807288,132.32,207.95,207.8,7.48]
[1756456807488,11.86930242,208.03,207.84,7.48]
[1756456807789,11.86930242,207.99,207.84,7.48]
[1756456808180,144.30930242,208.04,207.84,7.48]
[1756456808783,132.44,208.04,207.84,7.48]
[1756456808996,11.86930242,208.01,207.84,7.48]
[1756456809691,323.2,208.05,207.84,7.48]
[1756456809882,132.42,208.04,207.88,7.48]
[1756456810689,132.42,208.09,207.92,7.48]
[1756456810894,11.86930242,208.14,207.92,7.48]
[1756456811093,132.44,208.13,207.96,7.48]
[1756456811288,323.18,208.17,207.96,7.48]
[1756456811489,128.1839352,208.2,208.0,7.48]
[1756456811690,128.1839352,208.2,208.04,18.715733]
[1756456811891,128.1839352,208.2,208.05,7.48]
[1756456813191,128.1839352,208.2,207.99,7.48]
[1756456814292,67.2633,208.12,207.99,7.48]
[1756456814497,67.2693,208.1,207.99,7.48]
[1756456814893,67.2633,208.12,207.99,7.48]
[1756456815089,67.2665,208.11,207.99,7.48]
[1756456815292,67.2633,208.12,207.99,7.48]
[1756456815899,67.2633,208.12,207.92,102.255733]
[1756456815900,67.2633,208.12,207.92,18.715733]
[1756456816196,67.2633,208.12,207.93,7.48]
[1756456817387,132.38,208.14,207.93,7.48]
[1756456818404,18.715733,208.13,207.89,135.98525238]
[1756456818699,18.715733,208.13,207.89,131.98]
[1756456818894,18.715733,208.08,207.88,7.48]
[1756456819092,131.96,208.07,207.88,7.48]
[1756456819594,18.715733,208.03,207.84,4.00525238]
[1756456819796,18.715733,208.03,207.83,11.48525238]
[1756456820899,92.2,208.02,207.83,11.48525238]
[1756456821294,92.2,208.02,207.84,4.00525238]
[1756456821491,50.12,208.06,207.85,11.48525238]
[1756456821695,50.12,208.06,207.87,11.48525238]
[1756456821899,67.293,208.03,207.87,7.48]
[1756456822091,67.293,208.03,207.87,11.48525238]
[1756456822399,67.293,208.03,207.87,7.48]
[1756456822400,67.2957,208.02,207.87,7.48]
[1756456822601,4.327,207.98,207.87,7.48]
[1756456822798,67.3164,207.96,207.83,4.00525238]
[1756456823002,67.2991,208.01,207.82,511.35469118]
[1756456823003,110.8,207.98,207.82,334.50525238]
[1756456823191,67.3149,207.96,207.82,330.5]
[1756456823794,110.8,207.98,207.82,330.5]
[1756456823795,4.328,207.93,207.82,330.5]
[1756456823994,150.9791,208.01,207.83,7.48]
[1756456824194,150.9791,208.01,207.84,4.00525238]
[1756456824395,150.9791,208.01,207.85,7.48]
[1756456824797,4.3269,207.99,207.85,144.2896]
[1756456825001,4.3269,207.99,207.85,148.29485238]
[1756456825502,4.3269,207.99,207.86,4.00525238]
[1756456825695,68.28,208.03,207.85,143.96525238]
[1756456825896,68.28,208.03,207.85,11.48525238]
[1756456826096,86.007233,208.04,207.85,11.48525238]
[1756456826399,74.94,208.03,207.87,11.48525238]
[1756456827304,67.2695,208.1,207.93,11.48525238]
[1756456827604,67.2695,208.1,207.94,143.72525238]
[1756456827800,4.325,208.08,207.95,7.48]
[1756456828002,4.325,208.08,207.96,4.00525238]
[1756456828708,199.5034,208.12,207.95,7.48]
[1756456828709,67.2665,208.11,207.95,7.48]
[1756456828911,67.2717,208.1,207.95,7.48]
[1756456829505,218.219133,208.12,207.95,7.48]
[1756456829506,67.2835,208.06,207.95,7.48]
[1756456830107,67.2802,208.07,207.95,7.48]
[1756456830705,4.3257,208.04,207.95,7.48]
[1756456831504,4.3257,208.04,207.91,4.00525238]
[1756456831505,67.2922,208.03,207.91,4.00525238]
[1756456831710,67.2922,208.03,207.88,7.48]
[1756456831711,67.2967,208.02,207.88,7.48]
[1756456831903,67.2989,208.01,207.88,7.48]
[1756456832306,132.54,208.01,207.85,4.00525238]
[1756456832612,132.54,208.01,207.83,11.48525238]
[1756456833200,132.54,208.01,207.84,4.00525238]
[1756456833401,11.87748413,207.98,207.84,4.00525238]
[1756456833720,11.87748413,207.98,207.83,11.48525238]
[1756456834009,0.03,207.93,207.81,4.00525238]
[1756456834210,0.03,207.93,207.8,4.00525238]
[1756456834514,0.03,207.93,207.81,4.00525238]
[1756456834706,0.03,207.93,207.8,4.00525238]
[1756456835104,0.03,207.89,207.76,4.00525238]
[1756456835408,52.11,207.89,207.75,11.48525238]
[1756456835612,52.11,207.89,207.76,4.00525238]
[1756456836312,0.03,207.89,207.77,4.00525238]
[1756456836514,0.03,207.89,207.78,4.00525238]
[1756456836914,0.03,207.89,207.8,4.00525238]
[1756456837612,0.03,207.89,207.79,4.00525238]
[1756456838012,0.03,207.95,207.79,11.22525238]
[1756456838511,102.1,207.94,207.79,11.22525238]
[1756456838914,0.03,207.93,207.77,4.00525238]
[1756456839108,0.03,207.93,207.78,4.00525238]
[1756456839506,102.1,207.94,207.78,4.00525238]
[1756456839705,0.03,207.93,207.78,4.00525238]
[1756456839915,67.3283,207.92,207.78,4.00525238]
[1756456840212,0.03,207.93,207.78,4.00525238]
[1756456840411,18.76594765,207.91,207.74,11.22525238]
[1756456840616,0.03,207.9,207.74,11.22525238]
[1756456840815,131.99,207.9,207.76,4.00525238]
[1756456841014,131.99,207.9,207.77,4.00525238]
[1756456841517,323.06,207.98,207.78,7.22]
[1756456841713,131.99,207.97,207.8,11.22525238]
[1756456841915,131.99,207.97,207.82,4.00525238]
[1756456842218,0.03,207.97,207.83,7.22]
[1756456842413,0.03,207.97,207.83,11.22525238]
[1756456842615,323.06,207.98,207.85,7.22]
[1756456842820,18.76594765,207.96,207.84,4.00525238]
[1756456843019,0.03,207.95,207.79,11.22525238]
[1756456843318,0.03,207.95,207.8,4.00525238]
[1756456843716,132.1,207.94,207.8,4.00525238]
[1756456843914,132.1,207.94,207.81,4.00525238]
[1756456844120,132.1,207.94,207.8,4.00525238]
[1756456845118,132.0,207.93,207.8,4.00525238]
[1756456845824,0.03,207.92,207.8,4.00525238]
[1756456846023,0.03,207.92,207.79,11.22525238]
[1756456846921,0.03,207.92,207.8,4.00525238]
[1756456847622,150.56594765,207.95,207.81,7.22]
[1756456847820,0.03,207.97,207.81,7.22]
[1756456847821,0.03,207.97,207.82,4.00525238]
[1756456848023,131.79,207.97,207.83,4.00525238]
[1756456848219,323.06,207.98,207.84,4.00525238]
[1756456848421,323.06,207.98,207.86,11.22525238]
[1756456848822,67.3394,207.97,207.87,4.00525238]
[1756456849123,67.3394,207.97,207.86,7.22]
[1756456849331,0.03,207.97,207.86,7.22]
[1756456849628,0.03,207.97,207.86,11.22525238]
[1756456849822,4.3279,207.93,207.86,11.22525238]
[1756456851131,67.316,207.95,207.86,11.22525238]
[1756456851426,4.3284,207.91,207.87,7.22]
[1756456851630,4.3284,207.91,207.86,4.00525238]
[1756456851928,67.3587,207.91,207.85,4.00525238]
[1756456852127,67.3587,207.91,207.83,4.00525238]
[1756456852827,67.3223,207.93,207.83,4.00525238]
[1756456853024,67.3159,207.95,207.83,4.00525238]
[1756456853228,522.3175,207.98,207.85,4.00525238]
[1756456854226,390.3975,207.98,207.85,4.00525238]
[1756456854530,390.3975,207.98,207.86,4.00525238]
[1756456854531,454.93,207.98,207.86,4.00525238]
[1756456854732,0.03,207.97,207.85,4.00525238]
[1756456854931,0.03,207.97,207.84,11.22525238]
[1756456855133,18.76594765,207.96,207.81,4.00525238]
[1756456855327,0.03,207.95,207.81,4.00525238]
[1756456855729,18.76594765,207.96,207.8,4.00525238]
[1756456856131,0.03,207.95,207.8,4.00525238]
[1756456856332,0.03,207.95,207.81,4.00525238]
[1756456856534,18.76594765,207.96,207.81,4.00525238]
[1756456856732,0.03,207.95,207.81,4.00525238]
[1756456856933,18.76594765,207.96,207.81,4.00525238]
[1756456857134,0.03,207.95,207.81,4.00525238]
[1756456857335,11.88360347,207.92,207.81,4.00525238]
[1756456857533,143.50360347,207.92,207.82,4.00525238]
[1756456857735,0.03,207.91,207.81,4.00525238]
[1756456858233,0.03,207.91,207.8,4.00525238]
[1756456858832,0.03,207.91,207.81,4.00525238]
[1756456859338,4.329,207.88,207.82,4.00525238]
[1756456860436,11.91360347,207.97,207.83,7.22]
[1756456860633,0.03,208.01,207.87,4.00525238]
[1756456860832,67.29,208.03,207.92,4.00525238]
[1756456861034,4.3264,208.0,207.92,4.00525238]
[1756456861237,67.2904,208.03,207.95,4.00525238]
[1756456861439,79.15240347,208.1,208.0,4.00525238]
[1756456861440,4.3243,208.1,208.0,4.00525238]
[1756456861637,67.2485,208.16,208.01,11.22525238]
[1756456861940,0.03,208.06,207.97,4.00525238]
[1756456862235,0.03,208.12,207.99,11.22525238]
[1756456862535,4.3249,208.07,208.0,4.00525238]
[1756456862742,0.03,208.12,208.0,4.00525238]
[1756456863040,0.03,208.12,208.01,4.00525238]
[1756456863440,67.2688,208.1,208.01,4.00525238]
[1756456863640,67.2647,208.11,208.01,4.00525238]
[1756456863844,67.2613,208.12,208.06,4.00525238]
[1756456864142,67.2613,208.12,208.04,4.00525238]
[1756456864436,67.2721,208.09,208.04,4.00525238]
[1756456864641,67.2679,208.1,208.02,11.22525238]
[1756456864840,67.2709,208.09,208.03,4.00525238]
[1756456865234,199.0638,208.18,208.04,11.22525238]
[1756456865235,67.2438,208.18,208.04,11.22525238]
[1756456865437,67.2613,208.12,208.05,4.00525238]
[1756456865637,4.3248,208.08,208.05,4.00525238]
[1756456865837,4.3248,208.08,208.04,4.00525238]
[1756456866039,67.2549,208.14,208.05,7.22]
[1756456866942,67.2438,208.18,208.05,7.22]
[1756456867140,67.2438,208.18,208.06,4.00525238]
[1756456867439,67.2438,208.18,208.07,4.00525238]
[1756456867635,67.2558,208.14,208.08,7.66]
[1756456867836,67.2451,208.17,208.08,7.66]
[1756456868139,67.2525,208.15,208.08,7.66]
[1756456868737,4.3239,208.12,208.08,7.66]
[1756456869344,67.2649,208.11,208.02,11.66525238]
[1756456869539,67.2649,208.11,208.02,7.66]
[1756456869739,4.3248,208.08,208.02,7.66]
[1756456870337,67.2671,208.11,208.02,7.66]
[1756456870338,4.3252,208.06,208.02,7.66]
[1756456870537,4.3252,208.06,207.97,11.66525238]
[1756456870846,131.5,208.13,207.98,7.66]
[1756456871040,4.324,208.12,207.98,11.66525238]
[1756456871240,4.324,208.12,208.01,7.66]
[1756456871637,198.7922,208.15,208.01,7.66]
[1756456871638,67.2712,208.09,208.01,7.66]
[1756456871836,67.2747,208.08,207.97,7.66]
[1756456872143,67.2747,208.08,207.97,11.66525238]
[1756456872338,67.2586,208.13,207.98,7.66]
[1756456872538,198.7986,208.13,207.98,11.66525238]
[1756456872744,198.7986,208.13,207.99,4.00525238]
[1756456872944,198.7522,208.15,208.0,7.66]
[1756456873341,131.5,208.15,208.0,7.66]
[1756456873541,131.52,208.14,208.0,7.66]
[1756456874338,18.71490628,208.18,208.0,7.66]
[1756456874544,18.71490628,208.23,208.01,7.66]
[1756456874736,18.71490628,208.18,208.01,7.66]
[1756456877147,131.72,208.17,208.01,7.66]
[1756456877347,131.7,208.16,208.01,7.66]
[1756456879246,67.2596,208.13,207.96,334.74525238]
[1756456879553,67.2596,208.13,207.96,330.74]
[1756456879848,67.2596,208.13,207.97,7.66]
[1756456880441,18.71490628,208.11,207.92,11.66525238]
[1756456880649,18.71490628,208.11,207.92,7.66]
[1756456880845,100.72,208.1,207.92,7.66]
[1756456881448,18.71490628,208.06,207.92,7.66]
[1756456881753,18.71490628,208.06,207.78,10.6367984]
[1756456881754,18.71490628,208.06,207.86,7.66]
[1756456883543,14.42,208.08,207.86,7.66]
[1756456883747,11.87426389,208.0,207.86,7.66]
[1756456883948,143.65426389,208.0,207.86,7.66]
[1756456885148,11.87426389,207.96,207.82,11.66525238]
[1756456885354,11.87426389,207.96,207.83,4.00525238]
[1756456885652,11.87426389,207.96,207.82,7.66]
[1756456886249,131.36,207.98,207.83,7.66]
[1756456886450,14.42,207.97,207.78,4.00525238]
[1756456886651,67.3165,207.95,207.78,19.53426389]
[1756456886848,67.324,207.93,207.79,4.00525238]
[1756456887252,67.3198,207.94,207.79,4.00525238]
[1756456887253,4.3285,207.9,207.79,4.00525238]
[1756456887757,4.3283,207.91,207.79,4.00525238]
[1756456888054,67.3296,207.91,207.79,4.00525238]
[1756456888245,67.3296,207.91,207.78,7.66]
[1756456888246,4.3291,207.87,207.78,11.66525238]
[1756456888951,4.3296,207.85,207.78,11.66525238]
[1756456889653,4.3296,207.85,207.72,19.94006255]
[1756456889654,67.3499,207.85,207.74,4.00525238]
[1756456889950,67.3499,207.85,207.73,7.66]
[1756456890446,79.21186389,207.89,207.73,7.66]
[1756456890652,79.21186389,207.89,207.73,11.66525238]
[1756456891050,131.88,207.88,207.74,4.00525238]
[1756456891353,131.88,207.88,207.73,7.66]
[1756456891354,131.76,207.88,207.73,11.66525238]
[1756456891551,131.76,207.88,207.75,4.00525238]
[1756456892052,131.74,207.9,207.76,7.66]
[1756456892248,131.74,207.9,207.76,11.66525238]
[1756456892444,131.74,207.9,207.76,7.66]
[1756456893153,11.87426389,207.89,207.74,4.00525238]
[1756456894551,11.87426389,207.89,207.72,4.00525238]
[1756456895055,11.87426389,207.85,207.7,4.00525238]
[1756456895256,143.61426389,207.9,207.69,4.00525238]
[1756456895257,11.87426389,207.81,207.69,4.00525238]
[1756456895654,11.87426389,207.81,207.67,4.00525238]
[1756456895956,11.87426389,207.77,207.63,180.03765453]
[1756456896352,0.04,207.76,207.63,180.03765453]
[1756456896552,0.04,207.72,207.63,180.03765453]
[1756456897450,4.3326,207.71,207.63,180.03765453]
[1756456897850,0.04,207.72,207.63,180.03765453]
[1756456898053,0.04,207.72,207.63,187.25765453]
[1756456898255,11.87426389,207.73,207.55,11.22525238]
[1756456898458,0.04,207.69,207.55,7.22]
[1756456898853,131.6,207.75,207.57,7.22]
[1756456899247,0.04,207.74,207.57,7.22]
[1756456899448,11.87426389,207.72,207.57,7.22]
[1756456899760,0.04,207.74,207.61,7.22]
[1756456900852,40.12,207.8,207.61,7.22]
[1756456901254,31.94,207.8,207.64,11.87426389]
[1756456901557,31.94,207.8,207.65,7.22]
[1756456901753,0.04,207.8,207.65,7.22]
[1756456902159,0.04,207.85,207.69,7.22]
[1756456902353,13.86,207.85,207.69,7.22]
[1756456903150,0.04,207.85,207.73,7.22]
[1756456904260,323.28,207.9,207.73,7.22]
[1756456904261,323.32,207.9,207.73,7.22]
[1756456904655,4.3295,207.85,207.73,11.5518]
[1756456905256,323.32,207.9,207.77,7.22]
[1756456905452,199.3412,207.94,207.77,7.22]
[1756456905656,67.323,207.93,207.81,7.22]
[1756456905960,67.3299,207.91,207.81,7.22]
[1756456906160,0.04,207.91,207.81,7.22]
[1756456906457,4.3289,207.88,207.81,7.22]
[1756456906660,199.34,207.94,207.81,7.22]
[1756456906960,67.3298,207.91,207.81,7.22]
[1756456907461,4.3289,207.88,207.81,7.22]
[1756456907656,67.3481,207.98,207.82,11.87426389]
[1756456907967,67.3481,207.98,207.87,7.22]
[1756456908162,0.04,207.98,207.87,7.22]
[1756456911063,0.04,207.98,207.81,7.22]
[1756456912366,0.04,207.98,207.85,7.22]
[1756456913368,67.2987,208.01,207.85,7.22]
[1756456914474,0.04,208.0,207.85,7.22]
[1756456915371,0.04,208.0,207.88,11.87426389]
[1756456915573,0.04,208.1,207.93,7.22]
[1756456915874,67.2847,208.05,207.93,7.22]
[1756456916175,4.3264,208.0,207.93,7.22]
[1756456916576,67.3015,208.0,207.88,19.09426389]
[1756456917373,4.3271,207.97,207.88,19.09426389]
[1756456917675,67.3015,208.0,207.88,19.09426389]
[1756456917877,4.3275,207.96,207.88,19.09426389]
[1756456918177,67.3141,207.96,207.88,7.22]
[1756456918371,4.3285,207.91,207.88,7.22]
[1756456919475,67.3207,207.94,207.84,11.87426389]
[1756456919676,67.3207,207.94,207.83,7.22]
[1756456920276,67.3607,207.94,207.83,7.22]
[1756456920470,67.3105,207.97,207.83,7.22]
[1756456920675,67.3015,208.0,207.83,7.22]
[1756456920676,198.1415,208.0,207.83,7.22]
[1756456920880,0.04,207.99,207.83,7.22]
[1756456921175,210.01576389,208.0,207.83,7.22]
[1756456921378,11.87426389,207.96,207.8,3.98219157]
[1756456921569,0.04,207.95,207.77,7.22]
[1756456921970,11.87426389,207.92,207.77,7.22]
[1756456922280,0.04,207.91,207.78,7.22]
[1756456922677,0.04,207.93,207.78,7.22]
[1756456922879,0.04,207.93,207.78,11.20219157]
[1756456923081,0.04,207.93,207.79,11.20219157]
[1756456923480,0.04,207.93,207.8,3.98219157]
[1756456924378,0.04,207.93,207.81,3.98219157]
[1756456925680,0.04,207.93,207.82,7.22]
[1756456926380,131.08,207.98,207.82,7.22]
[1756456926582,67.3176,207.95,207.83,7.83]
[1756456926886,4.3287,207.89,207.83,7.83]
[1756456927284,79.18586389,207.97,207.83,7.83]
[1756456928286,4.328,207.93,207.83,7.83]
[1756456928487,4.328,207.93,207.83,11.81219157]
[1756456929187,4.3275,207.95,207.84,11.81219157]
[1756456929395,67.2987,208.01,207.88,7.83]
[1756456929989,4.3275,207.96,207.88,7.83]
[1756456931293,4.3278,207.94,207.88,7.83]
[1756456931495,67.325,207.93,207.85,3.98219157]
[1756456931692,67.325,207.93,207.81,8.98219157]
[1756456931693,67.3319,207.91,207.81,8.98219157]
[1756456931989,67.3342,207.9,207.81,5.0]
[1756456932194,4.3298,207.84,207.81,5.0]
[1756456932598,4.3302,207.83,207.81,5.0]
[1756456933190,67.3515,207.85,207.81,5.0]
[1756456933191,4.3297,207.85,207.81,5.0]
[1756456934997,4.3302,207.83,207.81,5.0]
[1756456937501,11.87426389,207.87,207.81,5.0]
[1756456937502,130.16,207.87,207.81,5.0]
[1756456938097,0.48,207.86,207.81,5.0]
[1756456938399,130.16,207.87,207.81,5.0]
[1756456939997,67.3342,207.9,207.81,5.0]
[1756456939998,130.02,207.86,207.81,5.0]
[1756456940197,130.04,207.86,207.81,5.0]
[1756456940999,130.02,207.87,207.81,5.0]
[1756456942304,129.88,207.87,207.81,5.0]
[1756456944309,4.33,207.84,207.81,5.0]
[1756456944604,129.88,207.87,207.81,5.0]
[1756456944803,4.3299,207.84,207.81,5.0]
[1756456945010,129.88,207.87,207.81,5.0]
[1756456945305,67.3265,207.93,207.81,12.83]
[1756456945512,129.62,207.92,207.81,33.01665546]
[1756456945811,129.62,207.92,207.81,28.68645546]
[1756456946003,4.3293,207.87,207.81,28.68645546]
[1756456946310,67.3198,207.95,207.81,28.68645546]
[1756456946508,67.3037,208.0,207.86,7.83]
[1756456946814,67.3147,207.96,207.87,3.98219157]
[1756456947109,67.3147,207.96,207.86,11.81219157]
[1756456948003,4.3277,207.95,207.88,3.98219157]
[1756456948210,11.87426389,208.03,207.9,3.98219157]
[1756456948410,129.68,208.0,207.91,3.98219157]
[1756456948601,4.3273,207.97,207.91,3.98219157]
[1756456948805,129.68,208.0,207.91,3.98219157]
[1756456949005,129.68,208.0,207.92,3.98219157]
[1756456949206,4.3273,207.97,207.92,3.98219157]
[1756456949402,4.3273,207.97,207.93,7.83]
[1756456949706,4.3273,207.97,207.92,3.98219157]
[1756456949899,4.3273,207.97,207.93,7.83]
[1756456950511,4.3275,207.96,207.93,7.83]
[1756456951210,4.327,207.98,207.92,7.83]
[1756456951407,129.68,208.0,207.92,7.83]
[1756456951608,196.9829,208.0,207.92,7.83]
[1756456952205,4.3277,207.95,207.91,3.98219157]
[1756456952407,4.3277,207.95,207.92,7.83]
[1756456952915,4.3277,207.95,207.91,3.98219157]
[1756456953615,4.3271,207.97,207.91,3.98219157]
[1756456953815,4.3271,207.97,207.91,11.81219157]
[1756456954816,4.3275,207.96,207.91,3.98219157]
[1756456955017,67.314,207.96,207.9,3.98219157]
[1756456955219,67.3177,207.95,207.88,3.98219157]
[1756456955515,4.3287,207.9,207.88,3.98219157]
[1756456955912,4.3287,207.9,207.88,11.81219157]
[1756456956913,4.3287,207.9,207.88,7.83]
[1756456957120,4.3281,207.93,207.88,7.83]
[1756456957314,67.2982,208.01,207.9,3.98219157]
[1756456957618,67.2982,208.01,207.91,3.98219157]
[1756456958111,4.3271,207.97,207.91,3.98219157]
[1756456958316,128.82,208.02,207.92,7.51]
[1756456958514,128.82,208.02,207.92,11.49219157]
[1756456958912,67.2932,208.03,207.92,11.49219157]
[1756456959113,4.3268,207.99,207.93,3.98219157]
[1756456959713,128.8,208.04,207.92,11.49219157]
[1756456961319,67.2918,208.03,207.92,11.49219157]
[1756456962717,4.3268,207.99,207.92,11.49219157]
[1756456963420,4.3268,207.99,207.93,3.98219157]
[1756456964023,128.78,208.05,207.93,3.98219157]
[1756456965222,128.78,208.05,207.92,11.49219157]
[1756456965417,128.78,208.05,207.93,3.98219157]
[1756456965622,128.78,208.05,207.92,7.51]
[1756456965623,128.78,208.05,207.92,11.49219157]
[1756456965822,128.78,208.05,207.92,7.51]
[1756456966019,128.78,208.05,207.92,11.49219157]
[1756456966826,128.78,208.05,207.93,3.98219157]
[1756456967018,128.76,208.06,207.94,11.49219157]
[1756456967722,11.87426389,208.05,207.94,7.51]
[1756456967925,11.87426389,208.05,207.91,3.98219157]
[1756456968124,11.87426389,208.05,207.9,3.98219157]
[1756456969215,11.87426389,208.06,207.9,3.98219157]
[1756456969525,128.76,208.05,207.91,11.49219157]
[1756456969924,128.76,208.05,207.92,3.98219157]
[1756456971125,323.26,208.07,207.96,7.51]
[1756456972526,67.2822,208.06,207.96,7.51]
[1756456972727,67.272,208.09,207.96,11.49219157]
[1756456972929,196.012,208.09,207.96,11.49219157]
[1756456973121,196.012,208.09,207.96,7.51]
[1756456973621,196.012,208.09,207.96,11.49219157]
[1756456973824,128.74,208.09,207.96,11.49219157]
[1756456974025,128.74,208.09,207.97,3.98219157]
[1756456974227,128.74,208.09,207.96,11.49219157]
[1756456974427,128.74,208.09,207.97,3.98219157]
[1756456975027,323.06,208.2,208.03,74.7991]
[1756456975322,334.93426389,208.2,208.04,7.51]
[1756456975529,334.93426389,208.2,208.04,11.49219157]
[1756456975530,128.72,208.19,208.04,11.49219157]
[1756456975920,11.87426389,208.18,208.04,7.51]
[1756456977323,4.3235,208.14,208.06,4.325]
[1756456978222,4.322,208.22,208.13,4.3236]
[1756456978637,67.2223,208.25,208.12,7.51]
[1756456979027,79.09266389,208.26,208.12,7.51]
[1756456980323,129.04,208.25,208.08,7.51]
[1756456981333,128.96,208.24,208.1,7.51]
[1756456981630,128.84,208.26,208.14,7.51]
[1756456982129,528.0,208.44,208.18,7.51]
[1756456982327,11.87426389,208.4,208.22,7.51]
[1756456982529,128.88,208.39,208.22,7.51]
[1756456984634,11.87426389,208.32,208.17,7.51]
[1756456984834,109.7,208.31,208.12,191.52854407]
[1756456985532,11.87426389,208.3,208.12,191.52854407]
[1756456986133,26.29426389,208.3,208.12,191.52854407]
[1756456986836,322.82,208.36,208.19,7.36]
[1756456986837,110.22,208.35,208.19,7.36]
[1756456987233,67.1893,208.35,208.19,7.36]
[1756456987437,322.82,208.36,208.19,7.36]
[1756456987438,129.5,208.34,208.19,74.599]
[1756456987649,129.5,208.34,208.2,7.36]
[1756456988337,4.3196,208.33,208.2,11.6821]
[1756456988634,322.82,208.36,208.23,7.36]
[1756456988635,129.5,208.35,208.23,7.36]
[1756456988843,129.5,208.35,208.18,19.23426389]
[1756456990645,129.5,208.35,208.19,7.36]
[1756456991253,451.98,208.36,208.19,7.36]
[1756456991441,451.98,208.36,208.22,4.3217]
[1756456991641,451.98,208.36,208.19,7.36]
[1756456993340,129.04,208.35,208.19,7.36]
[1756456994545,322.82,208.36,208.19,7.36]
[1756456994846,322.82,208.36,208.2,7.36]
[1756456995046,128.84,208.35,208.2,7.36]
[1756456996441,322.82,208.36,208.2,7.36]
[1756456996647,128.82,208.35,208.2,7.36]
[1756456999046,4.3206,208.29,208.21,4.3221]
[1756456999241,322.82,208.36,208.21,79.10756389]
[1756456999448,128.58,208.35,208.22,7.36]
[1756457000749,4.3194,208.34,208.25,4.3211]
[1756457002045,132.899,208.37,208.27,4.3207]
[1756457002250,4.319,208.37,208.26,7.36]
[1756457002449,4.319,208.37,208.28,4.3205]
[1756457002649,4.3191,208.36,208.28,4.3205]
[1756457002854,128.58,208.37,208.26,7.36]
[1756457003250,4.319,208.36,208.26,7.36]
[1756457004650,128.58,208.37,208.29,4.3203]
[1756457005247,67.1532,208.46,208.28,7.36]
[1756457005450,128.56,208.45,208.28,7.36]
[1756457005650,67.1593,208.44,208.28,7.36]
[1756457005850,128.56,208.43,208.28,7.36]
[1756457006349,4.3185,208.39,208.31,4.3199]
[1756457006552,67.1532,208.46,208.32,7.36]
[1756457006752,128.56,208.45,208.32,7.36]